Cogmind - Beta 14 @@@ ROGUE MODE // 2024.11.14 @ 15:18:54 Player: BEEEEES Result: Self-destructed Performance ------------- Evolutions (1) 500 Regions Visited (2) 400 Robots Destroyed (21) 105 Value Destroyed (430) 430 Prototype IDs (0) 0 Alien Tech Used (0) 0 Bonus (0) 0 TOTAL SCORE: 1435 Bonus ------- None Cogmind --------- Core Integrity 81/400 Matter 223/300 Energy 18/100 System Corruption 0% Temperature Cool (27) Movement Core (150) Ox2 Location -9/Materials Parts ------- > --- POWER (1) -------- (None) > --- PROPULSION (3) --- (None) > --- UTILITY (3) ------ Large Storage Unit Weight Redist. System > --- WEAPON (2) ------- Particle Cannon Heavy Hammer > --- INVENTORY (15) --- Light Ion Engine Aluminum Leg Aluminum Leg EM Pulse Gun Medium Laser Light Assault Rifle Light Assault Rifle Peak State ------------ > --- POWER ------------ Improved Ion Engine > --- PROPULSION ------- Aluminum Leg Aluminum Leg Wheel > --- UTILITY ---------- Large Storage Unit Weight Redist. System > --- WEAPON ----------- Beam Rifle Autogun > --- INVENTORY -------- Light Ion Engine EM Pulse Gun Medium Laser Particle Cannon Light Assault Rifle Light Assault Rifle Heavy Assault Rifle Grenade Launcher Heavy Hammer [Rating: 13] Favorites ----------- Power Improved Ion Engine Engine Improved Ion Engine Propulsion Aluminum Leg Leg Aluminum Leg Wheel Wheel Utility Small Storage Unit Device Weight Redist. System Storage Small Storage Unit Protection Medium Armor Plating Weapon Grenade Launcher Energy Gun Small Laser Energy Cannon Particle Cannon Ballistic Gun Autogun Launcher Grenade Launcher Impact Weapon Heavy Hammer Build | -11 -10 -9 ------- Run | Yrd Mat Mat Slots Evolved 2 | . . 2 Power . | . . . Propulsion 1 | . . 1 Utility 1 | . . 1 Weapon . | . . . Parts Attached 32 | 6 6 20 Power 4 | 1 . 3 Engine 4 | 1 . 3 Core . | . . . Reactor . | . . . Propulsion 8 | 2 1 5 Treads . | . . . Leg 7 | 2 1 4 Wheel 1 | . . 1 Hover . | . . . Flight . | . . . Utility 9 | 1 4 4 Device 3 | . 2 1 Storage 4 | 1 2 1 Processor . | . . . Hackware . | . . . Protection 2 | . . 2 Artifact . | . . . Weapon 11 | 2 1 8 Energy Gun 3 | 2 . 1 Energy Cannon 1 | . . 1 Ballistic Gun 3 | . . 3 Ballistic Cannon . | . . . Launcher 2 | . 1 1 Special Weapon . | . . . Impact Weapon 2 | . . 2 Slashing Weapon . | . . . Piercing Weapon . | . . . Special Melee Weapon . | . . . Unidentified Prototypes . | . . . Parts Lost 10 | . . 10 Power 1 | . . 1 Propulsion 4 | . . 4 Utility 1 | . . 1 Weapon 4 | . . 4 Highest Loss Streak 8 | . . 8 To Critical Strikes . | . . . Average Slot Usage (%) 77 | . 92 72 Engine 11 | . 14 10 Leg 22 | . 27 20 Device 2 | . 7 1 Storage 11 | . 14 11 Protection 4 | . . 6 Energy Gun 7 | . 23 2 Ballistic Gun 7 | . . 10 Launcher 7 | . 4 8 Peak Build Rating 13 | 6 9 13 Average Rating 8 | 4 7 9 On Entrance 4 | . 6 6 Naked Turns . | . . . Heaviest Build 86 | 11 86 40 Greatest Support 26 | 20 26 26 Greatest Overweight (x) 3 | 3 3 3 Average Overweight (x) . | . . . Largest Inventory Capacity 25 | 8 25 15 Average Capacity 11 | 7 8 13 Most Carried 11 | 4 9 11 Average Carried 7 | 2 6 8 Final Capacity 15 | 8 8 15 Final Carried 7 | 4 7 7 Class Distribution -------------------- 100% | Mutant Dominant Class ---------------- Mutant | -10/Materials Mutant | -9/Materials Resources | -11 -10 -9 ----------- Run | Yrd Mat Mat Matter Collected 596 | 211 70 315 Remotely . | . . . Salvage Created 493 | . 70 423 Parts 48 | . 10 38 Haulers Intercepted 1 | . . 1 Recyclers Shooed . | . . . Parts Field Recycled . | . . . Retrieved Matter . | . . . Parts Self-Destructed . | . . . Prevented . | . . . Kills | -11 -10 -9 ------- Run | Yrd Mat Mat Combat Hostiles Destroyed 17 | . 5 12 Melee 1 | . . 1 Guns 12 | . 3 9 AOE 4 | . 2 2 Classes Destroyed 7 | . 3 4 Worker 1 | . . 1 Builder 1 | . . 1 Hauler 1 | . . 1 Watcher 1 | . 1 . Swarmer 9 | . 3 6 Grunt 7 | . 2 5 Sentry 1 | . . 1 Best Kill Streak 6 | . 3 6 Combat Bots Only 5 | . 3 5 Max Kills in Single Turn 2 | . 2 2 Gunslinging . | . . . Exploded 2 | . 2 1 Melee 1 | . . 1 Uniques/NPCs Destroyed . | . . . Combat | -11 -10 -9 -------- Run | Yrd Mat Mat Hostile Shots Fired 170 | . 26 144 Missed 33 | . 4 29 Damage Taken 1647 | . 274 1373 Core 368 | . 49 319 Absorbed by Shields . | . . . Regen/Repaired (Parts) 68 | . 68 . Core Remaining (%) 90 | 100 80 . Volleys Fired 47 | . 12 35 Largest 2 | . 2 2 Hottest 90 | . 90 79 Shots Fired 76 | . 20 56 Gun 67 | . 16 51 Cannon 1 | . . 1 Launcher 8 | . 4 4 Special . | . . . Kinetic 34 | . . 34 Thermal 34 | . 16 18 Explosive 8 | . 4 4 Electromagnetic . | . . . Robot Hit Streak 10 | . 7 10 Robot Miss Streak 3 | . 2 3 Penetration Max . | . . . Secondary Targets 5 | . 2 3 Max Gunslinging Chain 1 | . 1 1 Shots Hit Robots 51 | . 16 35 Core Hits 28 | . 8 20 Critical Kills . | . . . Critical Parts Destroyed . | . . . Critical Strikes . | . . . Melee Attacks 4 | . . 4 Impact 4 | . . 4 Slashing . | . . . Piercing . | . . . Sneak Attacks . | . . . Combat Hostiles . | . . . Follow-up Attacks . | . . . Damage Inflicted 1108 | . 368 740 Guns 559 | . 135 424 Cannons 20 | . . 20 Explosions 403 | . 233 170 Melee 126 | . . 126 Ramming . | . . . Kinetic 264 | . . 264 Thermal 315 | . 135 180 Explosive 403 | . 233 170 Electromagnetic . | . . . Impact 126 | . . 126 Slashing . | . . . Piercing . | . . . Highest Corruption . | . . . Average Corruption . | . . . Corruption Purged . | . . . Corruption Blocked . | . . . Overload Shots . | . . . Overflow Damage 70 | . 1 69 Projectiles . | . . . Explosions 22 | . 1 21 Melee 48 | . . 48 Knockbacks . | . . . Impact . | . . . Kinetic . | . . . Secondary . | . . . Self-Inflicted Damage 186 | . 79 107 Shots 7 | . 4 3 Rammed . | . . . Targets Rammed 1 | . . 1 Kicked 1 | . . 1 Crushed . | . . . Highest Temperature 230 | . 174 230 Average Temperature 69 | . 76 66 Received Heat Transfer 507 | . 24 483 Siege Activations . | . . . Robots Corrupted . | . . . Combat Hostiles . | . . . Parts Fried . | . . . Impact Corruptions 2 | . . 2 Robots Melted . | . . . Combat Hostiles . | . . . Parts Melted 2 | . 1 1 Heat Transferred 804 | . 360 444 Parts Sabotaged . | . . . Parts Stolen . | . . . Parts Stripped . | . . . Power Chain Reactions . | . . . Alert | -11 -10 -9 ------- Run | Yrd Mat Mat Peak Influence 291 | . 172 291 Initial 72 | . . 72 Average 65 | . 96 59 Maximum Alert Level 1 | . . 1 Low Security (%) 97 | 100 100 96 Level 1 2 | . . 3 Level 2 . | . . . Level 3 . | . . . Level 4 . | . . . Level 5 . | . . . High Security . | . . . Max Security . | . . . Squads Dispatched 1 | . 1 . Investigation . | . . . Extermination . | . . . Reinforcement 1 | . 1 . Assault . | . . . Garrison . | . . . Intercept . | . . . Searches Triggered . | . . . Construction Impeded . | . . . Haulers Reinforced . | . . . Active Scanning Responses . | . . . Cargo Convoy Interrupts . | . . . Stealth | -11 -10 -9 --------- Run | Yrd Mat Mat Distress Signals 3 | . 1 2 Communications Jammed . | . . . Distress Signals . | . . . Times Spotted 34 | . 8 26 Peak Tracking Total 11 | . 4 11 Tactical Retreats 3 | . . 3 Traps | -11 -10 -9 ------- Run | Yrd Mat Mat Traps Triggered 1 | . . 1 Indirectly . | . . . Trap Hack Attempts . | . . . Triggered . | . . . Disarmed . | . . . Reprogrammed . | . . . Reused . | . . . Traps Extracted . | . . . Installed . | . . . Triggered . | . . . Machines | -11 -10 -9 ---------- Run | Yrd Mat Mat Machines Disabled 2 | . 1 1 Max in Single Turn 1 | . 1 1 Machines Repaired . | . . . Machines Dismantled . | . . . Machines Sabotaged . | . . . Overloaded Fab Kills . | . . . Hacking | -11 -10 -9 --------- Run | Yrd Mat Mat Machines Accessed 3 | . 1 2 Terminals 1 | . . 1 Fabricators . | . . . Repair Stations 2 | . 1 1 Recycling Units . | . . . Scanalyzers . | . . . Garrison Access . | . . . Total Hacks 7 | . 2 5 Successful 4 | . 2 2 Failed 3 | . . 3 Catastrophic . | . . . Database Lockouts . | . . . Manual . | . . . Terminals 2 | . . 2 Fabricators . | . . . Repair Stations 5 | . 2 3 Recycling Units . | . . . Scanalyzers . | . . . Garrison Access . | . . . Terminal Hacks 1 | . . 1 Zone Layout 1 | . . 1 Fabricator Hacks . | . . . Repair Station Hacks 3 | . 2 1 Scan Component 2 | . 1 1 Repair 1 | . 1 . Recycling Unit Hacks . | . . . Scanalyzer . | . . . Garrison Access Hacks . | . . . Unauthorized Hacks . | . . . Terminals . | . . . Fabricators . | . . . Repair Stations . | . . . Recycling Units . | . . . Scanalyzers . | . . . Garrison Access . | . . . Data Cores Recovered . | . . . Used . | . . . Hacking Detections 2 | . . 2 Full Trace Events . | . . . Feedback Events . | . . . Feedback Blocked . | . . . Robot Schematics Acquired . | . . . Robots Built . | . . . Authchips . | . . . Time . | . . . Total Robot Build Rating . | . . . Part Schematics Acquired . | . . . Parts Built . | . . . Authchips . | . . . Time . | . . . Total Part Build Rating . | . . . Parts Repaired 1 | . 1 . Time 13 | . 13 . Parts Recycled . | . . . Recycled Matter . | . . . Retrieved Matter . | . . . Retrieved Components . | . . . Parts Scanalyzed . | . . . Part Schematics Acquired . | . . . Parts Damaged . | . . . Bothacking | -11 -10 -9 ------------ Run | Yrd Mat Mat Used RIF Installer . | . . . Robots Hacked . | . . . Non-combat . | . . . Combat . | . . . Robot Hacks Applied . | . . . Relay Couplers Released . | . . . Fabnet Peak Effective % . | . . . Robots Rewired . | . . . Allies Hacked . | . . . Hacks Repelled . | . . . Allies | -11 -10 -9 -------- Run | Yrd Mat Mat Total Allies . | . . . Largest Group . | . . . Highest-Rated Group . | . . . Highest-Rated Ally . | . . . Total Orders . | . . . Ally Attacks . | . . . Total Damage . | . . . Kills . | . . . Allies Corrupted . | . . . Allies Melted . | . . . Intel | -11 -10 -9 ------- Run | Yrd Mat Mat Robot Analysis Total . | . . . Derelict Logs Recovered . | . . . Drone Launches . | . . . Drone Recoveries . | . . . Exploration | -11 -10 -9 ------------- Run | Yrd Mat Mat Turns Passed 1563 | 93 399 1071 Spaces Moved 868 | 61 282 525 Core 17 | 17 . . Treads . | . . . Legs 832 | 44 282 506 Wheels 19 | . . 19 Hover . | . . . Flight . | . . . Fastest Speed 50 | 50 120 120 Average Speed 154 | 131 123 174 Slowest Speed 330 | 200 330 330 Overloaded Moves . | . . . Propulsion Burnouts . | . . . Robots Hopped . | . . . Cave-ins Triggered . | . . . Exploration Rate (%) 24 | 5 32 36 Regions Visited 2 Branch Regions . Pre-discovered Areas . | . . . Known Exits Taken . | . . . Unknown Exits Taken 2 | 1 1 . Scrap Searched . | . . . Spaces Dug . | . . . Terrain Destroyed 46 | . 18 28 Melee . | . . . Projectile . | . . . AOE 46 | . 18 28 Terrain Rammed . | . . . Walls Destroyed . | . . . Machines Disabled . | . . . Actions | -11 -10 -9 --------- Run | Yrd Mat Mat Total 1000 | 70 312 618 Wait 24 | . 4 20 Move 866 | 60 281 525 Hop . | . . . Pick Up 17 | 4 5 8 Fast Attach 13 | 6 3 4 Attach 10 | . . 10 Detach 1 | . . 1 Swap 9 | . 3 6 Drop 8 | . 4 4 Fire 47 | . 12 35 Melee 4 | . . 4 Ram . | . . . Kick 1 | . . 1 Crush . | . . . Escape Stasis . | . . . Rewire . | . . . Trap . | . . . Miscellaneous . | . . . Route ------- -11/Scrapyard -10/Materials -9/Materials (discovered 1 exit: [*Min]) History --------- Turn | Location | Event 7 | -11/Scrapyard | Discovered new exit (range 16) 94 | -11/Scrapyard | Entered Materials 303 | -10/Materials | Build established: Mutant 427 | -10/Materials | Discovered new exit (range 15) 471 | -10/Materials | Repaired Aluminum Leg 493 | -10/Materials | Entered another Materials area 493 | -9/Materials | Evolved 2 slots: Propulsion x1, Utility x1 1132 | -9/Materials | Discovered new exit (range 12) 1552 | -9/Materials | Core integrity fell below 50% 1564 | -9/Materials | Self-destructed Last Messages --------------- The unstable cave ceiling collapses. Grenade Launcher destroyed. K-01 Serf collects debris. The unstable cave ceiling collapses. K-01 Serf collects debris. Destroyed Flight Unit. Destroyed Lgt. Ion Engine. S-10 Pest system corrupted by crushing effect. S-10 Pest destroyed. K-01 Serf collects debris. Critical hit (Burn: +37). K-01 Serf collects debris. Acquired 34 matter. Hvy. Assault Rifle destroyed. Aluminum Leg destroyed. The unstable cave ceiling collapses. K-01 Serf collects debris. S-10 Pest destroyed. K-01 Serf collects debris. Map ----- +----------------------------------------------------+ | ???????????????????????? | | ########+################????????????????????????? | | #?????????????????????????????????????????? | | "" """ #?????????????????????????????????????????? | | "" """ #?????????????????????????????????????????? | | "" """ #?????????????????????????????????????????? | | #?????????????????????????????????????????? | | #?????????????????? ????????????????????? | | +#######?????????????????# ????????????????????? | | #??????????????????# ????????????????????? | | #######????????????+ +???????????????????? | | # #????????????# #???????????????????? | | ### # #????????????# #???????????????????? | | ## # """#????????????# #???????????????????? | | ## # """#????????????# #???????????????????? | | ## # """#?######?????# #???????????????????? | | ## + #?"|"|""#????# #???????????????????? | | ## # # "|"|" #???## ##??????????????????? | | ## ###/### ##### [ #??????????????????? | | ## ^ ##############?????? | | ## < T! ????? | | ### ^ %= ????? | | ?#########+## #### *== ! ????? | | ?# ############ % # #####???????????? | | ?# # = k#g#!# #???????????????? | | ?# """ """ # ! =*==*@%Y #? #???????????????? | | ?# """ """ # " " g= # w #? #???????????????? | | ?# """ """ # " "* #?? #???????????????? | | ?# + "%= #####?? #???????????????? | | ?# # g= ##??????#???????????????? | | ?# #######+########??????????????????????? | | ?########### ! ???????????????? | | ???????????# ???????????????? | | ???????????# ???????????????? | | ???????????# ### ##### ????????????????? | | ???????????# ??# #????? #?????????????????? | | ???????????# ??#//!!==#??????#?????????????????? | | ???????????# ??#//!!==#????????????????????????? | | ???????????# ??########????????????????????????? | | ???????????+ ??????????????????????????????????? | | ???????????# ???????????????????????????????????? | | ???????????# ???????????????????????????????????? | | ???????????# ???????????????????????????????????? | | ???????????# ???????????????????????????????????? | | ???????????# ???????????????????????????????????? | | ???????????# ????????????????????????????????????? | | ?????????????????????????????????????????????????? | | ?????????????????????????????????????????????????? | | ?????????????????????????????????????????????????? | | ?????????????????????????????????????????????????? | +----------------------------------------------------+ Best States ------------- Heat Dissipation 28 Energy Generation 12 Energy Capacity 265 Matter Stores 290 Matter Capacity 300 Sight Range 16 Terrain Scan Density 10 Additional Mass Support 6 Armor Coverage 225 Evasion (%) 55 Item Schematics ----------------- None Robot Schematics ------------------ None Fabricated ------------ Nothing Alien Tech Used ----------------- None Achievements -------------- None Challenges ------------ None Game ------ Seed BackupPrecisionExtractor Manual? 0 Play Time 00:25:36 Cumulative 5.9 hours Start 2024.11.14 @ 13:44:15 End 2024.11.14 @ 15:18:54 Sessions 1 Manual Loads 0 Difficulty Rogue Special Mode None Game No. 12 Rogue 9 Adventurer 3 Explorer 0 Win Type - Total 0 Types 0/0/0/0/0/0/0/0/0 Lore% 3 Gallery% 11 Achievement% 10 Wizard Run 0 Options --------- Layout 1 ASCII 0 Keyboard 0 Movement Arrows Keybinds 0 Fullscreen 1 Font 24/Terminus Map View 50x35 Zoom Use 0% Tactical HUD 0 Map Filters NONE Filters NONE Steam 1 RUN: 0d7160ce-cb02-488b-9252-db2b3fb80300